Workbook

Sheet Лист1
A1: сегодня | B1: =TODAY() -> 2014-10-24 | D1: бюджет | E1: 10000 | G1: незакрытые суммы | H1: =Q5-R5 -> 2135827.48 | L1: искомая дата/период оплаты | O1: =IF(M$1="январь",OA2,IF(M$1="февраль",OB2,IF(M$1="март",OC2,IF(M$1="апрель",OD2,IF(M$1="май",OE2,IF(M$1="июнь",OF2,IF(M$1="июль",OG2,IF(M$1="август",OH2,IF(M$1="сентябрь",OI2,IF(M$1="октябрь",OJ2,IF(M$1="ноябрь",OK2,IF(M$1="декабрь",OL2,IF(M$1="год",OM2,IF(M$1="1 кв",ON2,IF(M$1="2 кв",OO2,IF(M$1="3 кв",OP2,IF(M$1="4 кв",OQ2,IF(M$1="","",IF(M$1>0,HLOOKUP(M$1,Y$1:NZ$3,2,0)))))))))))))))))))) ->  | P1: всего оплачено в этот день/период | W1: дата оплаты | Y1: 2014-01-01 | Z1: =Y1+1 -> 2014-01-02 | AA1: =Z1+1 -> 2014-01-03 | AB1: 2014-01-04 | AC1: =AB1+1 -> 2014-01-05 | AD1: 2014-01-06 | AE1: 2014-01-07 | AF1: 2014-01-08 | AG1: 2014-01-09 | AH1: 2014-01-10 | AI1: 2014-01-11 | AJ1: 2014-01-12 | AK1: 2014-01-13 | AL1: 2014-01-14 | AM1: 2014-01-15 | AN1: 2014-01-16 | AO1: 2014-01-17 | AP1: 2014-01-18 | AQ1: 2014-01-19 | AR1: 2014-01-20 | AS1: 2014-01-21 | AT1: 2014-01-22 | AU1: 2014-01-23 | AV1: 2014-01-24 | AW1: 2014-01-25 | AX1: 2014-01-26 | AY1: 2014-01-27 | AZ1: 2014-01-28 | BA1: 2014-01-29 | BB1: 2014-01-30 | BC1: 2014-01-31 | BD1: 2014-02-01 | BE1: 2014-02-02 | BF1: 2014-02-03 | BG1: 2014-02-04 | BH1: 2014-02-05 | BI1: 2014-02-06 | BJ1: 2014-02-07 | BK1: 2014-02-08 | BL1: 2014-02-09 | BM1: 2014-02-10 | BN1: 2014-02-11 | BO1: 2014-02-12 | BP1: 2014-02-13 | BQ1: 2014-02-14 | BR1: 2014-02-15 | BS1: 2014-02-16 | BT1: 2014-02-17 | BU1: 2014-02-18 | BV1: 2014-02-19 | BW1: 2014-02-20 | BX1: 2014-02-21 | BY1: 2014-02-22 | BZ1: 2014-02-23 | CA1: 2014-02-24 | CB1: 2014-02-25 | CC1: 2014-02-26 | CD1: 2014-02-27 | CE1: 2014-02-28 | CF1: 29.02.14 | CG1: =CE1+1 -> 2014-03-01 | CH1: 2014-03-02 | CI1: 2014-03-03 | CJ1: 2014-03-04 | CK1: 2014-03-05 | CL1: 2014-03-06 | CM1: 2014-03-07 | CN1: 2014-03-08 | CO1: 2014-03-09 | CP1: =CO1+1 -> 2014-03-10 | CQ1: 2014-03-11 | CR1: 2014-03-12 | CS1: 2014-03-13 | CT1: 2014-03-14 | CU1: 2014-03-15 | CV1: 2014-03-16 | CW1: 2014-03-17 | CX1: 2014-03-18 | CY1: 2014-03-19 | CZ1: 2014-03-20 | DA1: 2014-03-21 | DB1: 2014-03-22 | DC1: 2014-03-23 | DD1: 2014-03-24 | DE1: 2014-03-25 | DF1: 2014-03-26 | DG1: 2014-03-27 | DH1: 2014-03-28 | DI1: 2014-03-29 | DJ1: 2014-03-30 | DK1: 2014-03-31 | DL1: 2014-04-01 | DM1: 2014-04-02 | DN1: 2014-04-03 | DO1: 2014-04-04 | DP1: 2014-04-05 | DQ1: 2014-04-06 | DR1: 2014-04-07 | DS1: 2014-04-08 | DT1: 2014-04-09 | DU1: 2014-04-10 | DV1: 2014-04-11 | DW1: 2014-04-12 | DX1: 2014-04-13 | DY1: 2014-04-14 | DZ1: 2014-04-15 | EA1: 2014-04-16 | EB1: 2014-04-17 | EC1: 2014-04-18 | ED1: 2014-04-19 | EE1: 2014-04-20 | EF1: 2014-04-21 | EG1: 2014-04-22 | EH1: 2014-04-23 | EI1: 2014-04-24 | EJ1: 2014-04-25 | EK1: 2014-04-26 | EL1: 2014-04-27 | EM1: 2014-04-28 | EN1: 2014-04-29 | EO1: 2014-04-30 | EP1: 2014-05-01 | EQ1: 2014-05-02 | ER1: 2014-05-03 | ES1: 2014-05-04 | ET1: 2014-05-05 | EU1: 2014-05-06 | EV1: 2014-05-07 | EW1: 2014-05-08 | EX1: 2014-05-09 | EY1: 2014-05-10 | EZ1: 2014-05-11 | FA1: 2014-05-12 | FB1: =FA1+1 -> 2014-05-13 | FC1: 2014-05-14 | FD1: 2014-05-15 | FE1: 2014-05-16 | FF1: 2014-05-17 | FG1: 2014-05-18 | FH1: 2014-05-19 | FI1: 2014-05-20 | FJ1: 2014-05-21 | FK1: 2014-05-22 | FL1: 2014-05-23 | FM1: 2014-05-24 | FN1: 2014-05-25 | FO1: 2014-05-26 | FP1: 2014-05-27 | FQ1: 2014-05-28 | FR1: 2014-05-29 | FS1: 2014-05-30 | FT1: 2014-05-31 | FU1: 2014-06-01 | FV1: 2014-06-02 | FW1: 2014-06-03 | FX1: 2014-06-04 | FY1: 2014-06-05 | FZ1: 2014-06-06 | GA1: 2014-06-07 | GB1: 2014-06-08 | GC1: 2014-06-09 | GD1: 2014-06-10 | GE1: 2014-06-11 | GF1: 2014-06-12 | GG1: 2014-06-13 | GH1: 2014-06-14 | GI1: 2014-06-15 | GJ1: 2014-06-16 | GK1: 2014-06-17 | GL1: 2014-06-18 | GM1: 2014-06-19 | GN1: 2014-06-20 | GO1: 2014-06-21 | GP1: 2014-06-22 | GQ1: 2014-06-23 | GR1: 2014-06-24 | GS1: 2014-06-25 | GT1: 2014-06-26 | GU1: 2014-06-27 | GV1: 2014-06-28 | GW1: 2014-06-29 | GX1: 2014-06-30 | GY1: 2014-07-01 | GZ1: 2014-07-02 | HA1: 2014-07-03 | HB1: 2014-07-04 | HC1: 2014-07-05 | HD1: 2014-07-06 | HE1: 2014-07-07 | HF1: 2014-07-08 | HG1: 2014-07-09 | HH1: 2014-07-10 | HI1: 2014-07-11 | HJ1: 2014-07-12 | HK1: 2014-07-13 | HL1: 2014-07-14 | HM1: 2014-07-15 | HN1: =HM1+1 -> 2014-07-16 | HO1: 2014-07-17 | HP1: 2014-07-18 | HQ1: 2014-07-19 | HR1: 2014-07-20 | HS1: 2014-07-21 | HT1: 2014-07-22 | HU1: 2014-07-23 | HV1: 2014-07-24 | HW1: 2014-07-25 | HX1: 2014-07-26 | HY1: 2014-07-27 | HZ1: 2014-07-28 | IA1: 2014-07-29 | IB1: 2014-07-30 | IC1: 2014-07-31 | ID1: 2014-08-01 | IE1: 2014-08-02 | IF1: 2014-08-03 | IG1: 2014-08-04 | IH1: 2014-08-05 | II1: 2014-08-06 | IJ1: 2014-08-07 | IK1: 2014-08-08 | IL1: 2014-08-09 | IM1: 2014-08-10 | IN1: 2014-08-11 | IO1: 2014-08-12 | IP1: 2014-08-13 | IQ1: 2014-08-14 | IR1: 2014-08-15 | IS1: 2014-08-16 | IT1: 2014-08-17 | IU1: 2014-08-18 | IV1: 2014-08-19 | IW1: 2014-08-20 | IX1: 2014-08-21 | IY1: 2014-08-22 | IZ1: 2014-08-23 | JA1: 2014-08-24 | JB1: 2014-08-25 | JC1: 2014-08-26 | JD1: 2014-08-27 | JE1: 2014-08-28 | JF1: 2014-08-29 | JG1: 2014-08-30 | JH1: 2014-08-31 | JI1: 2014-09-01 | JJ1: 2014-09-02 | JK1: 2014-09-03 | JL1: 2014-09-04 | JM1: 2014-09-05 | JN1: 2014-09-06 | JO1: 2014-09-07 | JP1: 2014-09-08 | JQ1: 2014-09-09 | JR1: 2014-09-10 | JS1: 2014-09-11 | JT1: 2014-09-12 | JU1: 2014-09-13 | JV1: 2014-09-14 | JW1: 2014-09-15 | JX1: 2014-09-16 | JY1: 2014-09-17 | JZ1: =JY1+1 -> 2014-09-18 | KA1: 2014-09-19 | KB1: 2014-09-20 | KC1: 2014-09-21 | KD1: 2014-09-22 | KE1: 2014-09-23 | KF1: 2014-09-24 | KG1: 2014-09-25 | KH1: 2014-09-26 | KI1: 2014-09-27 | KJ1: 2014-09-28 | KK1: 2014-09-29 | KL1: 2014-09-30 | KM1: 2014-10-01 | KN1: 2014-10-02 | KO1: 2014-10-03 | KP1: 2014-10-04 | KQ1: 2014-10-05 | KR1: 2014-10-06 | KS1: 2014-10-07 | KT1: 2014-10-08 | KU1: 2014-10-09 | KV1: 2014-10-10 | KW1: 2014-10-11 | KX1: 2014-10-12 | KY1: 2014-10-13 | KZ1: 2014-10-14 | LA1: 2014-10-15 | LB1: 2014-10-16 | LC1: 2014-10-17 | LD1: 2014-10-18 | LE1: 2014-10-19 | LF1: 2014-10-20 | LG1: 2014-10-21 | LH1: 2014-10-22 | LI1: 2014-10-23 | LJ1: 2014-10-24 | LK1: 2014-10-25 | LL1: 2014-10-26 | LM1: 2014-10-27 | LN1: 2014-10-28 | LO1: 2014-10-29 | LP1: 2014-10-30 | LQ1: 2014-10-31 | LR1: 2014-11-01 | LS1: 2014-11-02 | LT1: 2014-11-03 | LU1: 2014-11-04 | LV1: 2014-11-05 | LW1: 2014-11-06 | LX1: 2014-11-07 | LY1: 2014-11-08 | LZ1: 2014-11-09 | MA1: 2014-11-10 | MB1: 2014-11-11 | MC1: 2014-11-12 | MD1: 2014-11-13 | ME1: 2014-11-14 | MF1: 2014-11-15 | MG1: 2014-11-16 | MH1: 2014-11-17 | MI1: 2014-11-18 | MJ1: 2014-11-19 | MK1: 2014-11-20 | ML1: =MK1+1 -> 2014-11-21 | MM1: 2014-11-22 | MN1: 2014-11-23 | MO1: 2014-11-24 | MP1: 2014-11-25 | MQ1: 2014-11-26 | MR1: 2014-11-27 | MS1: 2014-11-28 | MT1: 2014-11-29 | MU1: 2014-11-30 | MV1: 2014-12-01 | MW1: 2014-12-02 | MX1: 2014-12-03 | MY1: 2014-12-04 | MZ1: 2014-12-05 | NA1: 2014-12-06 | NB1: 2014-12-07 | NC1: 2014-12-08 | ND1: 2014-12-09 | NE1: 2014-12-10 | NF1: 2014-12-11 | NG1: 2014-12-12 | NH1: 2014-12-13 | NI1: 2014-12-14 | NJ1: 2014-12-15 | NK1: 2014-12-16 | NL1: 2014-12-17 | NM1: 2014-12-18 | NN1: 2014-12-19 | NO1: 2014-12-20 | NP1: 2014-12-21 | NQ1: 2014-12-22 | NR1: 2014-12-23 | NS1: 2014-12-24 | NT1: 2014-12-25 | NU1: 2014-12-26 | NV1: 2014-12-27 | NW1: 2014-12-28 | NX1: 2014-12-29 | NY1: 2014-12-30 | NZ1: 2014-12-31 | OA1: январь | OB1: февраль | OC1: март | OD1: апрель | OE1: май | OF1: июнь | OG1: июль | OH1: август | OI1: сентябрь | OJ1: октябрь | OK1: ноябрь | OL1: декабрь | OM1: год | ON1: 1 кв | OO1: 2 кв | OP1: 3 кв | OQ1: 4 кв
D2: =IF(E2>0,"нераспределенный остаток",IF(E2<0,"ПРЕВЫШЕНИЕ БЮДЖЕТА!","весь бюджет распределен")) -> нераспределенный остаток | E2: =E1-R5 -> 10000 | G2: дефицит бюджета | H2: =Q5-E1 -> 2125827.48 | O2: =IF(M$1="январь",OA3,IF(M$1="февраль",OB3,IF(M$1="март",OC3,IF(M$1="апрель",OD3,IF(M$1="май",OE3,IF(M$1="июнь",OF3,IF(M$1="июль",OG3,IF(M$1="август",OH3,IF(M$1="сентябрь",OI3,IF(M$1="октябрь",OJ3,IF(M$1="ноябрь",OK3,IF(M$1="декабрь",OL3,IF(M$1="год",OM3,IF(M$1="1 кв",ON3,IF(M$1="2 кв",OO3,IF(M$1="3 кв",OP3,IF(M$1="4 кв",OQ3,IF(M$1="","",IF(M$1>0,HLOOKUP(M$1,Y$1:NZ$3,3,0)))))))))))))))))))) ->  | P2: всего оплачено нарастающим итогом | W2: сумма на дату | Y2: =SUM(Y12:Y17) -> 22016 | Z2: 220000 | AA2: 3 | AB2: 4 | AC2: 8 | AD2: 0 | AE2: 4 | AF2: 0 | AG2: 0 | AH2: 0 | AI2: 0 | AJ2: 0 | AK2: 0 | AL2: 0 | AM2: 0 | AN2: 0 | AO2: 0 | AP2: 0 | AQ2: 0 | AR2: 0 | AS2: 0 | AT2: 0 | AU2: 0 | AV2: 0 | AW2: 0 | AX2: 0 | AY2: 0 | AZ2: 0 | BA2: 0 | BB2: 0 | BC2: 0 | BD2: 0 | BE2: 0 | BF2: 0 | BG2: 0 | BH2: 0 | BI2: 0 | BJ2: 0 | BK2: 0 | BL2: 0 | BM2: 0 | BN2: 0 | BO2: 0 | BP2: 0 | BQ2: 0 | BR2: 0 | BS2: 0 | BT2: 0 | BU2: 0 | BV2: 0 | BW2: 0 | BX2: 0 | BY2: 0 | BZ2: 0 | CA2: 0 | CB2: 0 | CC2: 0 | CD2: 0 | CE2: 0 | CF2: =SUM(CF12:CF17) -> 3 | CG2: 1 | CH2: 0 | CI2: 1 | CJ2: 0 | CK2: 0 | CL2: =SUM(CL12:CL17) -> 0 | CM2: 0 | CN2: 0 | CO2: 0 | CP2: 0 | CQ2: 0 | CR2: 0 | CS2: 0 | CT2: 0 | CU2: 0 | CV2: 0 | CW2: 0 | CX2: 0 | CY2: 0 | CZ2: 0 | DA2: 0 | DB2: 0 | DC2: 0 | DD2: 0 | DE2: 0 | DF2: 0 | DG2: 0 | DH2: 0 | DI2: 0 | DJ2: 0 | DK2: 0 | DL2: 0 | DM2: 0 | DN2: 0 | DO2: 0 | DP2: 0 | DQ2: 0 | DR2: 0 | DS2: 0 | DT2: 0 | DU2: 0 | DV2: 0 | DW2: 0 | DX2: 0 | DY2: 0 | DZ2: 0 | EA2: 0 | EB2: 0 | EC2: 0 | ED2: 0 | EE2: 0 | EF2: 0 | EG2: 0 | EH2: 0 | EI2: 0 | EJ2: 0 | EK2: 0 | EL2: 0 | EM2: 0 | EN2: 0 | EO2: 0 | EP2: 0 | EQ2: 0 | ER2: 0 | ES2: 0 | ET2: 0 | EU2: 0 | EV2: 0 | EW2: 0 | EX2: =SUM(EX12:EX17) -> 0 | EY2: 0 | EZ2: 0 | FA2: 0 | FB2: 0 | FC2: 0 | FD2: 0 | FE2: 0 | FF2: 0 | FG2: 0 | FH2: 0 | FI2: 0 | FJ2: 0 | FK2: 0 | FL2: 0 | FM2: 0 | FN2: 0 | FO2: 0 | FP2: 0 | FQ2: 0 | FR2: 0 | FS2: 0 | FT2: 0 | FU2: 0 | FV2: 0 | FW2: 0 | FX2: 0 | FY2: 0 | FZ2: 0 | GA2: 0 | GB2: 0 | GC2: 0 | GD2: 0 | GE2: 0 | GF2: 0 | GG2: 0 | GH2: 0 | GI2: 0 | GJ2: 0 | GK2: 0 | GL2: 0 | GM2: 0 | GN2: 0 | GO2: 0 | GP2: 0 | GQ2: 0 | GR2: 0 | GS2: 0 | GT2: 0 | GU2: 0 | GV2: 0 | GW2: 0 | GX2: 0 | GY2: 0 | GZ2: 0 | HA2: 0 | HB2: 0 | HC2: 0 | HD2: 0 | HE2: 0 | HF2: 0 | HG2: 0 | HH2: 0 | HI2: 0 | HJ2: =SUM(HJ12:HJ17) -> 0 | HK2: 0 | HL2: 0 | HM2: 0 | HN2: 0 | HO2: 0 | HP2: 0 | HQ2: 0 | HR2: 0 | HS2: 0 | HT2: 0 | HU2: 0 | HV2: 0 | HW2: 0 | HX2: 0 | HY2: 0 | HZ2: 0 | IA2: 0 | IB2: 0 | IC2: 0 | ID2: 0 | IE2: 0 | IF2: 0 | IG2: 0 | IH2: 0 | II2: 0 | IJ2: 0 | IK2: 0 | IL2: 0 | IM2: 0 | IN2: 0 | IO2: 0 | IP2: 0 | IQ2: 0 | IR2: 0 | IS2: 0 | IT2: 0 | IU2: 0 | IV2: 0 | IW2: 0 | IX2: 0 | IY2: 0 | IZ2: 0 | JA2: 0 | JB2: 0 | JC2: 0 | JD2: 0 | JE2: 0 | JF2: 0 | JG2: 0 | JH2: 0 | JI2: 0 | JJ2: 0 | JK2: 0 | JL2: 0 | JM2: 0 | JN2: 0 | JO2: 0 | JP2: 0 | JQ2: 0 | JR2: 0 | JS2: 0 | JT2: 0 | JU2: 0 | JV2: =SUM(JV12:JV17) -> 0 | JW2: 0 | JX2: 0 | JY2: 0 | JZ2: 0 | KA2: 0 | KB2: 0 | KC2: 0 | KD2: 0 | KE2: 0 | KF2: 0 | KG2: 0 | KH2: 0 | KI2: 0 | KJ2: 0 | KK2: 0 | KL2: 0 | KM2: 0 | KN2: 0 | KO2: 0 | KP2: 0 | KQ2: 0 | KR2: 0 | KS2: 0 | KT2: 0 | KU2: 0 | KV2: 0 | KW2: 0 | KX2: 0 | KY2: 0 | KZ2: 0 | LA2: 0 | LB2: 0 | LC2: 0 | LD2: 0 | LE2: 0 | LF2: 0 | LG2: 1003000 | LH2: 3000 | LI2: 0 | LJ2: 0 | LK2: 0 | LL2: 0 | LM2: 0 | LN2: 0 | LO2: 0 | LP2: 0 | LQ2: 0 | LR2: 0 | LS2: 0 | LT2: 0 | LU2: 0 | LV2: 0 | LW2: 0 | LX2: 0 | LY2: 0 | LZ2: 0 | MA2: 0 | MB2: 0 | MC2: 0 | MD2: 0 | ME2: 0 | MF2: 0 | MG2: 0 | MH2: =SUM(MH12:MH17) -> 0 | MI2: 0 | MJ2: 0 | MK2: 0 | ML2: 0 | MM2: 0 | MN2: 0 | MO2: 0 | MP2: 0 | MQ2: 0 | MR2: 0 | MS2: 0 | MT2: 0 | MU2: 0 | MV2: 0 | MW2: 0 | MX2: 0 | MY2: 0 | MZ2: 0 | NA2: 0 | NB2: 0 | NC2: 0 | ND2: 0 | NE2: 0 | NF2: 0 | NG2: 0 | NH2: 0 | NI2: 0 | NJ2: 0 | NK2: 0 | NL2: 0 | NM2: 0 | NN2: 0 | NO2: 0 | NP2: 0 | NQ2: 0 | NR2: 0 | NS2: 0 | NT2: 0 | NU2: 0 | NV2: 0 | NW2: 0 | NX2: 0 | NY2: 0 | NZ2: 0 | OA2: =SUM(Y2:BC2) -> 242035 | OB2: =SUM(BD2:CF2) -> 3 | OC2: =SUM(CG2:DK2) -> 2 | OD2: =SUM(DL2:EO2) -> 0 | OE2: =SUM(EP2:FT2) -> 0 | OF2: =SUM(FU2:GX2) -> 0 | OG2: =SUM(GY2:IC2) -> 0 | OH2: =SUM(ID2:JH2) -> 0 | OI2: =SUM(JI2:KL2) -> 0 | OJ2: =SUM(KM2:LQ2) -> 1006000 | OK2: =SUM(LR2:MU2) -> 0 | OL2: =SUM(MV2:NZ2) -> 0 | OM2: =SUM(OA2:OL2) -> 1248040 | ON2: =SUM(OA2:OC2) -> 242040 | OO2: =SUM(OD2:OF2) -> 0 | OP2: =SUM(OG2:OI2) -> 0 | OQ2: =SUM(OJ2:OL2) -> 1006000
O3: =IF(M1>0,SUBTOTAL(109,O12:O22),"") ->  | P3: оплачено по видимым строкам | W3: нарастающий итог | Y3: =Y2 -> 22016 | Z3: =Y3+Z2 -> 242016 | AA3: =Z3+AA2 -> 242019 | AB3: 242023 | AC3: 242031 | AD3: 242031 | AE3: 242035 | AF3: 242035 | AG3: 242035 | AH3: 242035 | AI3: 242035 | AJ3: 242035 | AK3: 242035 | AL3: 242035 | AM3: 242035 | AN3: 242035 | AO3: 242035 | AP3: 242035 | AQ3: 242035 | AR3: 242035 | AS3: 242035 | AT3: 242035 | AU3: 242035 | AV3: 242035 | AW3: 242035 | AX3: 242035 | AY3: 242035 | AZ3: 242035 | BA3: 242035 | BB3: 242035 | BC3: 242035 | BD3: 242035 | BE3: 242035 | BF3: 242035 | BG3: 242035 | BH3: 242035 | BI3: 242035 | BJ3: 242035 | BK3: 242035 | BL3: 242035 | BM3: 242035 | BN3: 242035 | BO3: 242035 | BP3: 242035 | BQ3: 242035 | BR3: 242035 | BS3: 242035 | BT3: 242035 | BU3: 242035 | BV3: 242035 | BW3: 242035 | BX3: 242035 | BY3: 242035 | BZ3: 242035 | CA3: 242035 | CB3: 242035 | CC3: 242035 | CD3: 242035 | CE3: 242035 | CF3: 242038 | CG3: =CF3+CG2 -> 242039 | CH3: 242039 | CI3: 242040 | CJ3: 242040 | CK3: 242040 | CL3: 242040 | CM3: 242040 | CN3: =CM3+CN2 -> 242040 | CO3: 242040 | CP3: 242040 | CQ3: 242040 | CR3: 242040 | CS3: 242040 | CT3: 242040 | CU3: 242040 | CV3: 242040 | CW3: 242040 | CX3: 242040 | CY3: 242040 | CZ3: 242040 | DA3: 242040 | DB3: 242040 | DC3: 242040 | DD3: 242040 | DE3: 242040 | DF3: 242040 | DG3: 242040 | DH3: 242040 | DI3: 242040 | DJ3: 242040 | DK3: 242040 | DL3: 242040 | DM3: 242040 | DN3: 242040 | DO3: 242040 | DP3: 242040 | DQ3: 242040 | DR3: 242040 | DS3: 242040 | DT3: 242040 | DU3: 242040 | DV3: 242040 | DW3: 242040 | DX3: 242040 | DY3: 242040 | DZ3: 242040 | EA3: 242040 | EB3: 242040 | EC3: 242040 | ED3: 242040 | EE3: 242040 | EF3: 242040 | EG3: 242040 | EH3: 242040 | EI3: 242040 | EJ3: 242040 | EK3: 242040 | EL3: 242040 | EM3: 242040 | EN3: 242040 | EO3: 242040 | EP3: 242040 | EQ3: 242040 | ER3: 242040 | ES3: 242040 | ET3: 242040 | EU3: 242040 | EV3: 242040 | EW3: 242040 | EX3: 242040 | EY3: 242040 | EZ3: =EY3+EZ2 -> 242040 | FA3: 242040 | FB3: 242040 | FC3: 242040 | FD3: 242040 | FE3: 242040 | FF3: 242040 | FG3: 242040 | FH3: 242040 | FI3: 242040 | FJ3: 242040 | FK3: 242040 | FL3: 242040 | FM3: 242040 | FN3: 242040 | FO3: 242040 | FP3: 242040 | FQ3: 242040 | FR3: 242040 | FS3: 242040 | FT3: 242040 | FU3: 242040 | FV3: 242040 | FW3: 242040 | FX3: 242040 | FY3: 242040 | FZ3: 242040 | GA3: 242040 | GB3: 242040 | GC3: 242040 | GD3: 242040 | GE3: 242040 | GF3: 242040 | GG3: 242040 | GH3: 242040 | GI3: 242040 | GJ3: 242040 | GK3: 242040 | GL3: 242040 | GM3: 242040 | GN3: 242040 | GO3: 242040 | GP3: 242040 | GQ3: 242040 | GR3: 242040 | GS3: 242040 | GT3: 242040 | GU3: 242040 | GV3: 242040 | GW3: 242040 | GX3: 242040 | GY3: 242040 | GZ3: 242040 | HA3: 242040 | HB3: 242040 | HC3: 242040 | HD3: 242040 | HE3: 242040 | HF3: 242040 | HG3: 242040 | HH3: 242040 | HI3: 242040 | HJ3: 242040 | HK3: 242040 | HL3: =HK3+HL2 -> 242040 | HM3: 242040 | HN3: 242040 | HO3: 242040 | HP3: 242040 | HQ3: 242040 | HR3: 242040 | HS3: 242040 | HT3: 242040 | HU3: 242040 | HV3: 242040 | HW3: 242040 | HX3: 242040 | HY3: 242040 | HZ3: 242040 | IA3: 242040 | IB3: 242040 | IC3: 242040 | ID3: 242040 | IE3: 242040 | IF3: 242040 | IG3: 242040 | IH3: 242040 | II3: 242040 | IJ3: 242040 | IK3: 242040 | IL3: 242040 | IM3: 242040 | IN3: 242040 | IO3: 242040 | IP3: 242040 | IQ3: 242040 | IR3: 242040 | IS3: 242040 | IT3: 242040 | IU3: 242040 | IV3: 242040 | IW3: 242040 | IX3: 242040 | IY3: 242040 | IZ3: 242040 | JA3: 242040 | JB3: 242040 | JC3: 242040 | JD3: 242040 | JE3: 242040 | JF3: 242040 | JG3: 242040 | JH3: 242040 | JI3: 242040 | JJ3: 242040 | JK3: 242040 | JL3: 242040 | JM3: 242040 | JN3: 242040 | JO3: 242040 | JP3: 242040 | JQ3: 242040 | JR3: 242040 | JS3: 242040 | JT3: 242040 | JU3: 242040 | JV3: 242040 | JW3: 242040 | JX3: =JW3+JX2 -> 242040 | JY3: 242040 | JZ3: 242040 | KA3: 242040 | KB3: 242040 | KC3: 242040 | KD3: 242040 | KE3: 242040 | KF3: 242040 | KG3: 242040 | KH3: 242040 | KI3: 242040 | KJ3: 242040 | KK3: 242040 | KL3: 242040 | KM3: 242040 | KN3: 242040 | KO3: 242040 | KP3: 242040 | KQ3: 242040 | KR3: 242040 | KS3: 242040 | KT3: 242040 | KU3: 242040 | KV3: 242040 | KW3: 242040 | KX3: 242040 | KY3: 242040 | KZ3: 242040 | LA3: 242040 | LB3: 242040 | LC3: 242040 | LD3: 242040 | LE3: 242040 | LF3: 242040 | LG3: 1245040 | LH3: 1248040 | LI3: 1248040 | LJ3: 1248040 | LK3: 1248040 | LL3: 1248040 | LM3: 1248040 | LN3: 1248040 | LO3: 1248040 | LP3: 1248040 | LQ3: 1248040 | LR3: 1248040 | LS3: 1248040 | LT3: 1248040 | LU3: 1248040 | LV3: 1248040 | LW3: 1248040 | LX3: 1248040 | LY3: 1248040 | LZ3: 1248040 | MA3: 1248040 | MB3: 1248040 | MC3: 1248040 | MD3: 1248040 | ME3: 1248040 | MF3: 1248040 | MG3: 1248040 | MH3: 1248040 | MI3: 1248040 | MJ3: =MI3+MJ2 -> 1248040 | MK3: 1248040 | ML3: 1248040 | MM3: 1248040 | MN3: 1248040 | MO3: 1248040 | MP3: 1248040 | MQ3: 1248040 | MR3: 1248040 | MS3: 1248040 | MT3: 1248040 | MU3: 1248040 | MV3: 1248040 | MW3: 1248040 | MX3: 1248040 | MY3: 1248040 | MZ3: 1248040 | NA3: 1248040 | NB3: 1248040 | NC3: 1248040 | ND3: 1248040 | NE3: 1248040 | NF3: 1248040 | NG3: 1248040 | NH3: 1248040 | NI3: 1248040 | NJ3: 1248040 | NK3: 1248040 | NL3: 1248040 | NM3: 1248040 | NN3: 1248040 | NO3: 1248040 | NP3: 1248040 | NQ3: 1248040 | NR3: 1248040 | NS3: 1248040 | NT3: 1248040 | NU3: 1248040 | NV3: 1248040 | NW3: 1248040 | NX3: 1248040 | NY3: 1248040 | NZ3: 1248040 | OA3: =OA2 -> 242035 | OB3: =OA3+OB2 -> 242038 | OC3: =OB3+OC2 -> 242040 | OD3: =OC3+OD2 -> 242040 | OE3: 242040 | OF3: 242040 | OG3: 242040 | OH3: 242040 | OI3: 242040 | OJ3: 1248040 | OK3: 1248040 | OL3: 1248040 | OM3: =OM2 -> 1248040 | ON3: =ON2 -> 242040 | OO3: =ON3+OO2 -> 242040 | OP3: =OO3+OP2 -> 242040 | OQ3: =OP3+OQ2 -> 1248040
J5: итого | K5: =SUM(K12:K17) -> 3383867.48 | L5: =SUM(L12:L17) -> 1248040 | O5: =SUM(O12:O17) -> 0 | Q5: =SUM(Q12:Q17) -> 2135827.48 | R5: =SUM(R12:R17) -> 0
A7: № пп | B7: объект | C7: подобъект | D7: подобъект 1 | E7: материал / работы | F7: № ЛЗК | G7: контрагент | H7: № счета/договора | I7: дата счета | J7: план начала работ | K7: общая сумма | L7: оплачено всего | M7: дата послед оплаты | N7: найти даты оплат | O7: искомая оплата на дату / период | P7: дата / период | Q7: не оплачено | R7: к оплате | S7: ! | T7: поставка дней | U7: план | V7: факт | W7: комментарии
A11: № пп | B11: объект | C11: подобъект | D11: подобъект 1 | E11: материал / работы | F11: № ЛЗК | G11: контрагент | H11: № счета/договора | I11: дата счета | J11: план начала работ | K11: общая сумма | L11: оплачено всего | M11: дата послед оплаты | N11: найти даты оплат | O11: искомая оплата на дату / период | P11: дата / период | Q11: не оплачено | R11: к оплате | S11: ! | T11: поставка дней | U11: план | V11: факт | W11: комментарии | Y11: 2014-01-01 | Z11: =Y11+1 -> 2014-01-02 | AA11: =Z11+1 -> 2014-01-03 | AB11: =AA11+1 -> 2014-01-04 | AC11: =AB11+1 -> 2014-01-05 | AD11: =AC11+1 -> 2014-01-06 | AE11: =AD11+1 -> 2014-01-07 | AF11: =AE11+1 -> 2014-01-08 | AG11: =AF11+1 -> 2014-01-09 | AH11: =AG11+1 -> 2014-01-10 | AI11: =AH11+1 -> 2014-01-11 | AJ11: =AI11+1 -> 2014-01-12 | AK11: =AJ11+1 -> 2014-01-13 | AL11: =AK11+1 -> 2014-01-14 | AM11: =AL11+1 -> 2014-01-15 | AN11: =AM11+1 -> 2014-01-16 | AO11: =AN11+1 -> 2014-01-17 | AP11: =AO11+1 -> 2014-01-18 | AQ11: =AP11+1 -> 2014-01-19 | AR11: =AQ11+1 -> 2014-01-20 | AS11: =AR11+1 -> 2014-01-21 | AT11: =AS11+1 -> 2014-01-22 | AU11: =AT11+1 -> 2014-01-23 | AV11: =AU11+1 -> 2014-01-24 | AW11: =AV11+1 -> 2014-01-25 | AX11: =AW11+1 -> 2014-01-26 | AY11: =AX11+1 -> 2014-01-27 | AZ11: =AY11+1 -> 2014-01-28 | BA11: =AZ11+1 -> 2014-01-29 | BB11: =BA11+1 -> 2014-01-30 | BC11: =BB11+1 -> 2014-01-31 | BD11: =BC11+1 -> 2014-02-01 | BE11: =BD11+1 -> 2014-02-02 | BF11: =BE11+1 -> 2014-02-03 | BG11: =BF11+1 -> 2014-02-04 | BH11: =BG11+1 -> 2014-02-05 | BI11: =BH11+1 -> 2014-02-06 | BJ11: =BI11+1 -> 2014-02-07 | BK11: =BJ11+1 -> 2014-02-08 | BL11: =BK11+1 -> 2014-02-09 | BM11: =BL11+1 -> 2014-02-10 | BN11: =BM11+1 -> 2014-02-11 | BO11: =BN11+1 -> 2014-02-12 | BP11: =BO11+1 -> 2014-02-13 | BQ11: =BP11+1 -> 2014-02-14 | BR11: =BQ11+1 -> 2014-02-15 | BS11: =BR11+1 -> 2014-02-16 | BT11: =BS11+1 -> 2014-02-17 | BU11: =BT11+1 -> 2014-02-18 | BV11: =BU11+1 -> 2014-02-19 | BW11: =BV11+1 -> 2014-02-20 | BX11: =BW11+1 -> 2014-02-21 | BY11: =BX11+1 -> 2014-02-22 | BZ11: =BY11+1 -> 2014-02-23 | CA11: =BZ11+1 -> 2014-02-24 | CB11: =CA11+1 -> 2014-02-25 | CC11: =CB11+1 -> 2014-02-26 | CD11: =CC11+1 -> 2014-02-27 | CE11: =CD11+1 -> 2014-02-28 | CF11: 29.02.14 | CG11: =CE11+1 -> 2014-03-01 | CH11: =CG11+1 -> 2014-03-02 | CI11: =CH11+1 -> 2014-03-03 | CJ11: =CI11+1 -> 2014-03-04 | CK11: =CJ11+1 -> 2014-03-05 | CL11: =CK11+1 -> 2014-03-06 | CM11: =CL11+1 -> 2014-03-07 | CN11: =CM11+1 -> 2014-03-08 | CO11: =CN11+1 -> 2014-03-09 | CP11: =CO11+1 -> 2014-03-10 | CQ11: =CP11+1 -> 2014-03-11 | CR11: =CQ11+1 -> 2014-03-12 | CS11: =CR11+1 -> 2014-03-13 | CT11: =CS11+1 -> 2014-03-14 | CU11: =CT11+1 -> 2014-03-15 | CV11: =CU11+1 -> 2014-03-16 | CW11: =CV11+1 -> 2014-03-17 | CX11: =CW11+1 -> 2014-03-18 | CY11: =CX11+1 -> 2014-03-19 | CZ11: =CY11+1 -> 2014-03-20 | DA11: =CZ11+1 -> 2014-03-21 | DB11: =DA11+1 -> 2014-03-22 | DC11: =DB11+1 -> 2014-03-23 | DD11: =DC11+1 -> 2014-03-24 | DE11: =DD11+1 -> 2014-03-25 | DF11: =DE11+1 -> 2014-03-26 | DG11: =DF11+1 -> 2014-03-27 | DH11: =DG11+1 -> 2014-03-28 | DI11: =DH11+1 -> 2014-03-29 | DJ11: =DI11+1 -> 2014-03-30 | DK11: =DJ11+1 -> 2014-03-31 | DL11: =DK11+1 -> 2014-04-01 | DM11: =DL11+1 -> 2014-04-02 | DN11: =DM11+1 -> 2014-04-03 | DO11: =DN11+1 -> 2014-04-04 | DP11: =DO11+1 -> 2014-04-05 | DQ11: =DP11+1 -> 2014-04-06 | DR11: =DQ11+1 -> 2014-04-07 | DS11: =DR11+1 -> 2014-04-08 | DT11: =DS11+1 -> 2014-04-09 | DU11: =DT11+1 -> 2014-04-10 | DV11: =DU11+1 -> 2014-04-11 | DW11: =DV11+1 -> 2014-04-12 | DX11: =DW11+1 -> 2014-04-13 | DY11: =DX11+1 -> 2014-04-14 | DZ11: =DY11+1 -> 2014-04-15 | EA11: =DZ11+1 -> 2014-04-16 | EB11: =EA11+1 -> 2014-04-17 | EC11: =EB11+1 -> 2014-04-18 | ED11: =EC11+1 -> 2014-04-19 | EE11: =ED11+1 -> 2014-04-20 | EF11: =EE11+1 -> 2014-04-21 | EG11: =EF11+1 -> 2014-04-22 | EH11: =EG11+1 -> 2014-04-23 | EI11: =EH11+1 -> 2014-04-24 | EJ11: =EI11+1 -> 2014-04-25 | EK11: =EJ11+1 -> 2014-04-26 | EL11: =EK11+1 -> 2014-04-27 | EM11: =EL11+1 -> 2014-04-28 | EN11: =EM11+1 -> 2014-04-29 | EO11: =EN11+1 -> 2014-04-30 | EP11: =EO11+1 -> 2014-05-01 | EQ11: =EP11+1 -> 2014-05-02 | ER11: =EQ11+1 -> 2014-05-03 | ES11: =ER11+1 -> 2014-05-04 | ET11: =ES11+1 -> 2014-05-05 | EU11: =ET11+1 -> 2014-05-06 | EV11: =EU11+1 -> 2014-05-07 | EW11: =EV11+1 -> 2014-05-08 | EX11: =EW11+1 -> 2014-05-09 | EY11: =EX11+1 -> 2014-05-10 | EZ11: =EY11+1 -> 2014-05-11 | FA11: =EZ11+1 -> 2014-05-12 | FB11: =FA11+1 -> 2014-05-13 | FC11: =FB11+1 -> 2014-05-14 | FD11: =FC11+1 -> 2014-05-15 | FE11: =FD11+1 -> 2014-05-16 | FF11: =FE11+1 -> 2014-05-17 | FG11: =FF11+1 -> 2014-05-18 | FH11: =FG11+1 -> 2014-05-19 | FI11: =FH11+1 -> 2014-05-20 | FJ11: =FI11+1 -> 2014-05-21 | FK11: =FJ11+1 -> 2014-05-22 | FL11: =FK11+1 -> 2014-05-23 | FM11: =FL11+1 -> 2014-05-24 | FN11: =FM11+1 -> 2014-05-25 | FO11: =FN11+1 -> 2014-05-26 | FP11: =FO11+1 -> 2014-05-27 | FQ11: =FP11+1 -> 2014-05-28 | FR11: =FQ11+1 -> 2014-05-29 | FS11: =FR11+1 -> 2014-05-30 | FT11: =FS11+1 -> 2014-05-31 | FU11: =FT11+1 -> 2014-06-01 | FV11: =FU11+1 -> 2014-06-02 | FW11: =FV11+1 -> 2014-06-03 | FX11: =FW11+1 -> 2014-06-04 | FY11: =FX11+1 -> 2014-06-05 | FZ11: =FY11+1 -> 2014-06-06 | GA11: =FZ11+1 -> 2014-06-07 | GB11: =GA11+1 -> 2014-06-08 | GC11: =GB11+1 -> 2014-06-09 | GD11: =GC11+1 -> 2014-06-10 | GE11: =GD11+1 -> 2014-06-11 | GF11: =GE11+1 -> 2014-06-12 | GG11: =GF11+1 -> 2014-06-13 | GH11: =GG11+1 -> 2014-06-14 | GI11: =GH11+1 -> 2014-06-15 | GJ11: =GI11+1 -> 2014-06-16 | GK11: =GJ11+1 -> 2014-06-17 | GL11: =GK11+1 -> 2014-06-18 | GM11: =GL11+1 -> 2014-06-19 | GN11: =GM11+1 -> 2014-06-20 | GO11: =GN11+1 -> 2014-06-21 | GP11: =GO11+1 -> 2014-06-22 | GQ11: =GP11+1 -> 2014-06-23 | GR11: =GQ11+1 -> 2014-06-24 | GS11: =GR11+1 -> 2014-06-25 | GT11: =GS11+1 -> 2014-06-26 | GU11: =GT11+1 -> 2014-06-27 | GV11: =GU11+1 -> 2014-06-28 | GW11: =GV11+1 -> 2014-06-29 | GX11: =GW11+1 -> 2014-06-30 | GY11: =GX11+1 -> 2014-07-01 | GZ11: =GY11+1 -> 2014-07-02 | HA11: =GZ11+1 -> 2014-07-03 | HB11: =HA11+1 -> 2014-07-04 | HC11: =HB11+1 -> 2014-07-05 | HD11: =HC11+1 -> 2014-07-06 | HE11: =HD11+1 -> 2014-07-07 | HF11: =HE11+1 -> 2014-07-08 | HG11: =HF11+1 -> 2014-07-09 | HH11: =HG11+1 -> 2014-07-10 | HI11: =HH11+1 -> 2014-07-11 | HJ11: =HI11+1 -> 2014-07-12 | HK11: =HJ11+1 -> 2014-07-13 | HL11: =HK11+1 -> 2014-07-14 | HM11: =HL11+1 -> 2014-07-15 | HN11: =HM11+1 -> 2014-07-16 | HO11: =HN11+1 -> 2014-07-17 | HP11: =HO11+1 -> 2014-07-18 | HQ11: =HP11+1 -> 2014-07-19 | HR11: =HQ11+1 -> 2014-07-20 | HS11: =HR11+1 -> 2014-07-21 | HT11: =HS11+1 -> 2014-07-22 | HU11: =HT11+1 -> 2014-07-23 | HV11: =HU11+1 -> 2014-07-24 | HW11: =HV11+1 -> 2014-07-25 | HX11: =HW11+1 -> 2014-07-26 | HY11: =HX11+1 -> 2014-07-27 | HZ11: =HY11+1 -> 2014-07-28 | IA11: =HZ11+1 -> 2014-07-29 | IB11: =IA11+1 -> 2014-07-30 | IC11: =IB11+1 -> 2014-07-31 | ID11: =IC11+1 -> 2014-08-01 | IE11: =ID11+1 -> 2014-08-02 | IF11: =IE11+1 -> 2014-08-03 | IG11: =IF11+1 -> 2014-08-04 | IH11: =IG11+1 -> 2014-08-05 | II11: =IH11+1 -> 2014-08-06 | IJ11: =II11+1 -> 2014-08-07 | IK11: =IJ11+1 -> 2014-08-08 | IL11: =IK11+1 -> 2014-08-09 | IM11: =IL11+1 -> 2014-08-10 | IN11: =IM11+1 -> 2014-08-11 | IO11: =IN11+1 -> 2014-08-12 | IP11: =IO11+1 -> 2014-08-13 | IQ11: =IP11+1 -> 2014-08-14 | IR11: =IQ11+1 -> 2014-08-15 | IS11: =IR11+1 -> 2014-08-16 | IT11: =IS11+1 -> 2014-08-17 | IU11: =IT11+1 -> 2014-08-18 | IV11: =IU11+1 -> 2014-08-19 | IW11: =IV11+1 -> 2014-08-20 | IX11: =IW11+1 -> 2014-08-21 | IY11: =IX11+1 -> 2014-08-22 | IZ11: =IY11+1 -> 2014-08-23 | JA11: =IZ11+1 -> 2014-08-24 | JB11: =JA11+1 -> 2014-08-25 | JC11: =JB11+1 -> 2014-08-26 | JD11: =JC11+1 -> 2014-08-27 | JE11: =JD11+1 -> 2014-08-28 | JF11: =JE11+1 -> 2014-08-29 | JG11: =JF11+1 -> 2014-08-30 | JH11: =JG11+1 -> 2014-08-31 | JI11: =JH11+1 -> 2014-09-01 | JJ11: =JI11+1 -> 2014-09-02 | JK11: =JJ11+1 -> 2014-09-03 | JL11: =JK11+1 -> 2014-09-04 | JM11: =JL11+1 -> 2014-09-05 | JN11: =JM11+1 -> 2014-09-06 | JO11: =JN11+1 -> 2014-09-07 | JP11: =JO11+1 -> 2014-09-08 | JQ11: =JP11+1 -> 2014-09-09 | JR11: =JQ11+1 -> 2014-09-10 | JS11: =JR11+1 -> 2014-09-11 | JT11: =JS11+1 -> 2014-09-12 | JU11: =JT11+1 -> 2014-09-13 | JV11: =JU11+1 -> 2014-09-14 | JW11: =JV11+1 -> 2014-09-15 | JX11: =JW11+1 -> 2014-09-16 | JY11: =JX11+1 -> 2014-09-17 | JZ11: =JY11+1 -> 2014-09-18 | KA11: =JZ11+1 -> 2014-09-19 | KB11: =KA11+1 -> 2014-09-20 | KC11: =KB11+1 -> 2014-09-21 | KD11: =KC11+1 -> 2014-09-22 | KE11: =KD11+1 -> 2014-09-23 | KF11: =KE11+1 -> 2014-09-24 | KG11: =KF11+1 -> 2014-09-25 | KH11: =KG11+1 -> 2014-09-26 | KI11: =KH11+1 -> 2014-09-27 | KJ11: =KI11+1 -> 2014-09-28 | KK11: =KJ11+1 -> 2014-09-29 | KL11: =KK11+1 -> 2014-09-30 | KM11: =KL11+1 -> 2014-10-01 | KN11: =KM11+1 -> 2014-10-02 | KO11: =KN11+1 -> 2014-10-03 | KP11: =KO11+1 -> 2014-10-04 | KQ11: =KP11+1 -> 2014-10-05 | KR11: =KQ11+1 -> 2014-10-06 | KS11: =KR11+1 -> 2014-10-07 | KT11: =KS11+1 -> 2014-10-08 | KU11: =KT11+1 -> 2014-10-09 | KV11: =KU11+1 -> 2014-10-10 | KW11: =KV11+1 -> 2014-10-11 | KX11: =KW11+1 -> 2014-10-12 | KY11: =KX11+1 -> 2014-10-13 | KZ11: =KY11+1 -> 2014-10-14 | LA11: =KZ11+1 -> 2014-10-15 | LB11: =LA11+1 -> 2014-10-16 | LC11: =LB11+1 -> 2014-10-17 | LD11: =LC11+1 -> 2014-10-18 | LE11: =LD11+1 -> 2014-10-19 | LF11: =LE11+1 -> 2014-10-20 | LG11: =LF11+1 -> 2014-10-21 | LH11: =LG11+1 -> 2014-10-22 | LI11: =LH11+1 -> 2014-10-23 | LJ11: =LI11+1 -> 2014-10-24 | LK11: =LJ11+1 -> 2014-10-25 | LL11: =LK11+1 -> 2014-10-26 | LM11: =LL11+1 -> 2014-10-27 | LN11: =LM11+1 -> 2014-10-28 | LO11: =LN11+1 -> 2014-10-29 | LP11: =LO11+1 -> 2014-10-30 | LQ11: =LP11+1 -> 2014-10-31 | LR11: =LQ11+1 -> 2014-11-01 | LS11: =LR11+1 -> 2014-11-02 | LT11: =LS11+1 -> 2014-11-03 | LU11: =LT11+1 -> 2014-11-04 | LV11: =LU11+1 -> 2014-11-05 | LW11: =LV11+1 -> 2014-11-06 | LX11: =LW11+1 -> 2014-11-07 | LY11: =LX11+1 -> 2014-11-08 | LZ11: =LY11+1 -> 2014-11-09 | MA11: =LZ11+1 -> 2014-11-10 | MB11: =MA11+1 -> 2014-11-11 | MC11: =MB11+1 -> 2014-11-12 | MD11: =MC11+1 -> 2014-11-13 | ME11: =MD11+1 -> 2014-11-14 | MF11: =ME11+1 -> 2014-11-15 | MG11: =MF11+1 -> 2014-11-16 | MH11: =MG11+1 -> 2014-11-17 | MI11: =MH11+1 -> 2014-11-18 | MJ11: =MI11+1 -> 2014-11-19 | MK11: =MJ11+1 -> 2014-11-20 | ML11: =MK11+1 -> 2014-11-21 | MM11: =ML11+1 -> 2014-11-22 | MN11: =MM11+1 -> 2014-11-23 | MO11: =MN11+1 -> 2014-11-24 | MP11: =MO11+1 -> 2014-11-25 | MQ11: =MP11+1 -> 2014-11-26 | MR11: =MQ11+1 -> 2014-11-27 | MS11: =MR11+1 -> 2014-11-28 | MT11: =MS11+1 -> 2014-11-29 | MU11: =MT11+1 -> 2014-11-30 | MV11: =MU11+1 -> 2014-12-01 | MW11: =MV11+1 -> 2014-12-02 | MX11: =MW11+1 -> 2014-12-03 | MY11: =MX11+1 -> 2014-12-04 | MZ11: =MY11+1 -> 2014-12-05 | NA11: =MZ11+1 -> 2014-12-06 | NB11: =NA11+1 -> 2014-12-07 | NC11: =NB11+1 -> 2014-12-08 | ND11: =NC11+1 -> 2014-12-09 | NE11: =ND11+1 -> 2014-12-10 | NF11: =NE11+1 -> 2014-12-11 | NG11: =NF11+1 -> 2014-12-12 | NH11: =NG11+1 -> 2014-12-13 | NI11: =NH11+1 -> 2014-12-14 | NJ11: =NI11+1 -> 2014-12-15 | NK11: =NJ11+1 -> 2014-12-16 | NL11: =NK11+1 -> 2014-12-17 | NM11: =NL11+1 -> 2014-12-18 | NN11: =NM11+1 -> 2014-12-19 | NO11: =NN11+1 -> 2014-12-20 | NP11: =NO11+1 -> 2014-12-21 | NQ11: =NP11+1 -> 2014-12-22 | NR11: =NQ11+1 -> 2014-12-23 | NS11: =NR11+1 -> 2014-12-24 | NT11: =NS11+1 -> 2014-12-25 | NU11: =NT11+1 -> 2014-12-26 | NV11: =NU11+1 -> 2014-12-27 | NW11: =NV11+1 -> 2014-12-28 | NX11: =NW11+1 -> 2014-12-29 | NY11: =NX11+1 -> 2014-12-30 | NZ11: =NY11+1 -> 2014-12-31 | OA11: январь | OB11: февраль | OC11: март | OD11: апрель | OE11: май | OF11: июнь | OG11: июль | OH11: август | OI11: сентябрь | OJ11: октябрь | OK11: ноябрь | OL11: декабрь | OM11: год | ON11: 1 кв | OO11: 2 кв | OP11: 3 кв | OQ11: 4 кв
A12: 7 | B12: Пристройка | C12: кж | D12: фунд | E12: болты | G12: Сибкреп | H12: 1 | I12: 2014-07-18 | J12: 2014-07-18 | K12: 22362 | L12: =SUM(Y12:NZ12) -> 22362 | O12: =IF(M$1="январь",OA12,IF(M$1="февраль",OB12,IF(M$1="март",OC12,IF(M$1="апрель",OD12,IF(M$1="май",OE12,IF(M$1="июнь",OF12,IF(M$1="июль",OG12,IF(M$1="август",OH12,IF(M$1="сентябрь",OI12,IF(M$1="октябрь",OJ12,IF(M$1="ноябрь",OK12,IF(M$1="декабрь",OL12,IF(M$1="год",OM12,IF(M$1="1 кв",ON12,IF(M$1="2 кв",OO12,IF(M$1="3 кв",OP12,IF(M$1="4 кв",OQ12,IF(M$1="","",IF(M$1>0,HLOOKUP(M$1,Y$1:NZ$1012,ROW(),0)))))))))))))))))))) ->  | P12: =IF(O12="","",IF(O12>0,M$1,"")) ->  | Q12: =K12-L12 -> 0 | T12: 7 | U12: =IF(M12>0,T12+M12,"") ->  | Y12: 20350 | AA12: 2 | AC12: 3 | AE12: 4 | CF12: 1 | CG12: 1 | CI12: 1 | LG12: 2000 | OA12: =SUM(Y12:BC12) -> 20359 | OB12: =SUM(BD12:CF12) -> 1 | OC12: =SUM(CG12:DK12) -> 2 | OD12: =SUM(DL12:EO12) -> 0 | OE12: =SUM(EP12:FT12) -> 0 | OF12: =SUM(FU12:GX12) -> 0 | OG12: =SUM(GY12:IC12) -> 0 | OH12: =SUM(ID12:JH12) -> 0 | OI12: =SUM(JI12:KL12) -> 0 | OJ12: =SUM(KM12:LQ12) -> 2000 | OK12: =SUM(LR12:MU12) -> 0 | OL12: =SUM(MV12:NZ12) -> 0 | OM12: =SUM(OA12:OL12) -> 22362 | ON12: =SUM(OA12:OC12) -> 20362 | OO12: =SUM(OD12:OF12) -> 0 | OP12: =SUM(OG12:OI12) -> 0 | OQ12: =SUM(OJ12:OL12) -> 2000
A13: 2 | B13: Гараж | D13: стены внутр | E13: звукоизоляция | G13: АСГ Трейдинвест | H13: 2 | I13: 2014-08-07 | J13: вып | K13: 200001 | L13: 200001 | O13: =IF(M$1="январь",OA13,IF(M$1="февраль",OB13,IF(M$1="март",OC13,IF(M$1="апрель",OD13,IF(M$1="май",OE13,IF(M$1="июнь",OF13,IF(M$1="июль",OG13,IF(M$1="август",OH13,IF(M$1="сентябрь",OI13,IF(M$1="октябрь",OJ13,IF(M$1="ноябрь",OK13,IF(M$1="декабрь",OL13,IF(M$1="год",OM13,IF(M$1="1 кв",ON13,IF(M$1="2 кв",OO13,IF(M$1="3 кв",OP13,IF(M$1="4 кв",OQ13,IF(M$1="","",IF(M$1>0,HLOOKUP(M$1,Y$1:NZ$1012,ROW(),0)))))))))))))))))))) ->  | P13: =IF(O13="","",IF(O13>0,M$1,"")) ->  | Q13: 0 | T13: 4 | V13: + | Z13: 200000 | CF13: 1 | OA13: 200000 | OB13: 1 | OC13: 0 | OD13: 0 | OE13: 0 | OF13: 0 | OG13: 0 | OH13: 0 | OI13: 0 | OJ13: 0 | OK13: 0 | OL13: 0 | OM13: 200001 | ON13: 200001 | OO13: 0 | OP13: 0 | OQ13: 0
A14: 6 | B14: Пристройка | C14: кж | D14: фунд | E14: болты | G14: Сибкреп | H14: 3 | I14: 2014-07-24 | J14: в работе | K14: 3000000 | L14: 1021005 | O14: =IF(M$1="январь",OA14,IF(M$1="февраль",OB14,IF(M$1="март",OC14,IF(M$1="апрель",OD14,IF(M$1="май",OE14,IF(M$1="июнь",OF14,IF(M$1="июль",OG14,IF(M$1="август",OH14,IF(M$1="сентябрь",OI14,IF(M$1="октябрь",OJ14,IF(M$1="ноябрь",OK14,IF(M$1="декабрь",OL14,IF(M$1="год",OM14,IF(M$1="1 кв",ON14,IF(M$1="2 кв",OO14,IF(M$1="3 кв",OP14,IF(M$1="4 кв",OQ14,IF(M$1="","",IF(M$1>0,HLOOKUP(M$1,Y$1:NZ$1012,ROW(),0)))))))))))))))))))) ->  | P14: =IF(O14="","",IF(O14>0,M$1,"")) ->  | Q14: 1978995 | T14: 7 | V14: + | Y14: 1000 | Z14: 20000 | AC14: 5 | LG14: 1000000 | OA14: 21005 | OB14: 0 | OC14: 0 | OD14: 0 | OE14: 0 | OF14: 0 | OG14: 0 | OH14: 0 | OI14: 0 | OJ14: 1000000 | OK14: 0 | OL14: 0 | OM14: 1021005 | ON14: 21005 | OO14: 0 | OP14: 0 | OQ14: 1000000
A15: 4 | B15: Гараж | D15: стены внутр | E15: профлист | G15: Компания металл профиль | H15: 4 | I15: 2014-08-15 | J15: 2014-10-10 | K15: 65000 | L15: 0 | O15: =IF(M$1="январь",OA15,IF(M$1="февраль",OB15,IF(M$1="март",OC15,IF(M$1="апрель",OD15,IF(M$1="май",OE15,IF(M$1="июнь",OF15,IF(M$1="июль",OG15,IF(M$1="август",OH15,IF(M$1="сентябрь",OI15,IF(M$1="октябрь",OJ15,IF(M$1="ноябрь",OK15,IF(M$1="декабрь",OL15,IF(M$1="год",OM15,IF(M$1="1 кв",ON15,IF(M$1="2 кв",OO15,IF(M$1="3 кв",OP15,IF(M$1="4 кв",OQ15,IF(M$1="","",IF(M$1>0,HLOOKUP(M$1,Y$1:NZ$1012,ROW(),0)))))))))))))))))))) ->  | P15: =IF(O15="","",IF(O15>0,M$1,"")) ->  | Q15: 65000 | T15: 5 | V15: + | OA15: 0 | OB15: 0 | OC15: 0 | OD15: 0 | OE15: 0 | OF15: 0 | OG15: 0 | OH15: 0 | OI15: 0 | OJ15: 0 | OK15: 0 | OL15: 0 | OM15: 0 | ON15: 0 | OO15: 0 | OP15: 0 | OQ15: 0
A16: 5 | B16: Пристройка | C16: кж | D16: фунд | E16: арматура | G16: Сталепромышленная компания | H16: 5 | I16: 2014-07-31 | J16: в работе | K16: 76154.48 | L16: 6 | O16: =IF(M$1="январь",OA16,IF(M$1="февраль",OB16,IF(M$1="март",OC16,IF(M$1="апрель",OD16,IF(M$1="май",OE16,IF(M$1="июнь",OF16,IF(M$1="июль",OG16,IF(M$1="август",OH16,IF(M$1="сентябрь",OI16,IF(M$1="октябрь",OJ16,IF(M$1="ноябрь",OK16,IF(M$1="декабрь",OL16,IF(M$1="год",OM16,IF(M$1="1 кв",ON16,IF(M$1="2 кв",OO16,IF(M$1="3 кв",OP16,IF(M$1="4 кв",OQ16,IF(M$1="","",IF(M$1>0,HLOOKUP(M$1,Y$1:NZ$1012,ROW(),0)))))))))))))))))))) ->  | P16: =IF(O16="","",IF(O16>0,M$1,"")) ->  | Q16: 76148.48 | T16: 1 | W16: 30% (чего?) | AA16: 1 | AB16: 4 | CF16: 1 | OA16: 5 | OB16: 1 | OC16: 0 | OD16: 0 | OE16: 0 | OF16: 0 | OG16: 0 | OH16: 0 | OI16: 0 | OJ16: 0 | OK16: 0 | OL16: 0 | OM16: 6 | ON16: 6 | OO16: 0 | OP16: 0 | OQ16: 0
A17: 8 | B17: АБК | E17: кондиционеры монтаж | G17: Омвентстрой | H17: 6 | I17: 2014-08-28 | J17: вып | K17: 20350 | L17: 4666 | O17: =IF(M$1="январь",OA17,IF(M$1="февраль",OB17,IF(M$1="март",OC17,IF(M$1="апрель",OD17,IF(M$1="май",OE17,IF(M$1="июнь",OF17,IF(M$1="июль",OG17,IF(M$1="август",OH17,IF(M$1="сентябрь",OI17,IF(M$1="октябрь",OJ17,IF(M$1="ноябрь",OK17,IF(M$1="декабрь",OL17,IF(M$1="год",OM17,IF(M$1="1 кв",ON17,IF(M$1="2 кв",OO17,IF(M$1="3 кв",OP17,IF(M$1="4 кв",OQ17,IF(M$1="","",IF(M$1>0,HLOOKUP(M$1,Y$1:NZ$1012,ROW(),0)))))))))))))))))))) ->  | P17: =IF(O17="","",IF(O17>0,M$1,"")) ->  | Q17: 15684 | T17: 20 | V17: + | Y17: 666 | LG17: 1000 | LH17: 3000 | OA17: 666 | OB17: 0 | OC17: 0 | OD17: 0 | OE17: 0 | OF17: 0 | OG17: 0 | OH17: 0 | OI17: 0 | OJ17: 4000 | OK17: 0 | OL17: 0 | OM17: 4666 | ON17: 666 | OO17: 0 | OP17: 0 | OQ17: 4000
A18: 9 | B18: АБК | E18: кондиционеры монтаж | G18: Омвентстрой | H18: 7 | I18: 2014-08-28 | J18: 2014-12-30 | K18: 20350 | L18: 1555 | O18: =IF(M$1="январь",OA18,IF(M$1="февраль",OB18,IF(M$1="март",OC18,IF(M$1="апрель",OD18,IF(M$1="май",OE18,IF(M$1="июнь",OF18,IF(M$1="июль",OG18,IF(M$1="август",OH18,IF(M$1="сентябрь",OI18,IF(M$1="октябрь",OJ18,IF(M$1="ноябрь",OK18,IF(M$1="декабрь",OL18,IF(M$1="год",OM18,IF(M$1="1 кв",ON18,IF(M$1="2 кв",OO18,IF(M$1="3 кв",OP18,IF(M$1="4 кв",OQ18,IF(M$1="","",IF(M$1>0,HLOOKUP(M$1,Y$1:NZ$1012,ROW(),0)))))))))))))))))))) ->  | P18: =IF(O18="","",IF(O18>0,M$1,"")) ->  | Q18: 18795 | Y18: 555 | LG18: 1000 | OA18: =SUM(Y18:BC18) -> 555 | OB18: =SUM(BD18:CF18) -> 0 | OC18: =SUM(CG18:DK18) -> 0 | OD18: =SUM(DL18:EO18) -> 0 | OE18: =SUM(EP18:FT18) -> 0 | OF18: =SUM(FU18:GX18) -> 0 | OG18: =SUM(GY18:IC18) -> 0 | OH18: =SUM(ID18:JH18) -> 0 | OI18: =SUM(JI18:KL18) -> 0 | OJ18: =SUM(KM18:LQ18) -> 1000 | OK18: =SUM(LR18:MU18) -> 0 | OL18: =SUM(MV18:NZ18) -> 0 | OM18: =SUM(OA18:OL18) -> 1555 | ON18: =SUM(OA18:OC18) -> 555 | OO18: =SUM(OD18:OF18) -> 0 | OP18: =SUM(OG18:OI18) -> 0 | OQ18: =SUM(OJ18:OL18) -> 1000
A19: 10 | B19: АБК | E19: кондиционеры монтаж | G19: Омвентстрой | H19: 8 | I19: 2014-08-28 | J19: вып | K19: 20350 | L19: 0 | O19: =IF(M$1="январь",OA19,IF(M$1="февраль",OB19,IF(M$1="март",OC19,IF(M$1="апрель",OD19,IF(M$1="май",OE19,IF(M$1="июнь",OF19,IF(M$1="июль",OG19,IF(M$1="август",OH19,IF(M$1="сентябрь",OI19,IF(M$1="октябрь",OJ19,IF(M$1="ноябрь",OK19,IF(M$1="декабрь",OL19,IF(M$1="год",OM19,IF(M$1="1 кв",ON19,IF(M$1="2 кв",OO19,IF(M$1="3 кв",OP19,IF(M$1="4 кв",OQ19,IF(M$1="","",IF(M$1>0,HLOOKUP(M$1,Y$1:NZ$1012,ROW(),0)))))))))))))))))))) ->  | P19: =IF(O19="","",IF(O19>0,M$1,"")) ->  | Q19: 20350 | T19: 20 | V19: + | OA19: 0 | OB19: 0 | OC19: 0 | OD19: 0 | OE19: 0 | OF19: 0 | OG19: 0 | OH19: 0 | OI19: 0 | OJ19: 0 | OK19: 0 | OL19: 0 | OM19: 0 | ON19: 0 | OO19: 0 | OP19: 0 | OQ19: 0
A20: 11 | B20: АБК | E20: кондиционеры монтаж | G20: Омвентстрой | H20: 9 | I20: 2014-08-28 | J20: вып | K20: 20350 | L20: 333 | O20: =IF(M$1="январь",OA20,IF(M$1="февраль",OB20,IF(M$1="март",OC20,IF(M$1="апрель",OD20,IF(M$1="май",OE20,IF(M$1="июнь",OF20,IF(M$1="июль",OG20,IF(M$1="август",OH20,IF(M$1="сентябрь",OI20,IF(M$1="октябрь",OJ20,IF(M$1="ноябрь",OK20,IF(M$1="декабрь",OL20,IF(M$1="год",OM20,IF(M$1="1 кв",ON20,IF(M$1="2 кв",OO20,IF(M$1="3 кв",OP20,IF(M$1="4 кв",OQ20,IF(M$1="","",IF(M$1>0,HLOOKUP(M$1,Y$1:NZ$1012,ROW(),0)))))))))))))))))))) ->  | P20: =IF(O20="","",IF(O20>0,M$1,"")) ->  | Q20: 20017 | T20: 20 | V20: + | Y20: 333 | OA20: 333 | OB20: 0 | OC20: 0 | OD20: 0 | OE20: 0 | OF20: 0 | OG20: 0 | OH20: 0 | OI20: 0 | OJ20: 0 | OK20: 0 | OL20: 0 | OM20: 333 | ON20: 333 | OO20: 0 | OP20: 0 | OQ20: 0
A21: 12 | B21: АБК | E21: кондиционеры монтаж | G21: Омвентстрой | H21: 10 | I21: 2014-08-28 | J21: вып | K21: 20350 | L21: 2002 | O21: =IF(M$1="январь",OA21,IF(M$1="февраль",OB21,IF(M$1="март",OC21,IF(M$1="апрель",OD21,IF(M$1="май",OE21,IF(M$1="июнь",OF21,IF(M$1="июль",OG21,IF(M$1="август",OH21,IF(M$1="сентябрь",OI21,IF(M$1="октябрь",OJ21,IF(M$1="ноябрь",OK21,IF(M$1="декабрь",OL21,IF(M$1="год",OM21,IF(M$1="1 кв",ON21,IF(M$1="2 кв",OO21,IF(M$1="3 кв",OP21,IF(M$1="4 кв",OQ21,IF(M$1="","",IF(M$1>0,HLOOKUP(M$1,Y$1:NZ$1012,ROW(),0)))))))))))))))))))) ->  | P21: =IF(O21="","",IF(O21>0,M$1,"")) ->  | Q21: 18348 | T21: 20 | V21: + | Y21: 2 | LG21: 2000 | OA21: 2 | OB21: 0 | OC21: 0 | OD21: 0 | OE21: 0 | OF21: 0 | OG21: 0 | OH21: 0 | OI21: 0 | OJ21: 2000 | OK21: 0 | OL21: 0 | OM21: 2002 | ON21: 2 | OO21: 0 | OP21: 0 | OQ21: 2000
A22: 13 | B22: АБК | E22: кондиционеры монтаж | G22: Омвентстрой | H22: 11 | I22: 2014-08-28 | J22: вып | K22: 20350 | L22: 2111 | O22: =IF(M$1="январь",OA22,IF(M$1="февраль",OB22,IF(M$1="март",OC22,IF(M$1="апрель",OD22,IF(M$1="май",OE22,IF(M$1="июнь",OF22,IF(M$1="июль",OG22,IF(M$1="август",OH22,IF(M$1="сентябрь",OI22,IF(M$1="октябрь",OJ22,IF(M$1="ноябрь",OK22,IF(M$1="декабрь",OL22,IF(M$1="год",OM22,IF(M$1="1 кв",ON22,IF(M$1="2 кв",OO22,IF(M$1="3 кв",OP22,IF(M$1="4 кв",OQ22,IF(M$1="","",IF(M$1>0,HLOOKUP(M$1,Y$1:NZ$1012,ROW(),0)))))))))))))))))))) ->  | P22: =IF(O22="","",IF(O22>0,M$1,"")) ->  | Q22: 18239 | T22: 20 | V22: + | Y22: 1111 | LG22: 1000 | OA22: 1111 | OB22: 0 | OC22: 0 | OD22: 0 | OE22: 0 | OF22: 0 | OG22: 0 | OH22: 0 | OI22: 0 | OJ22: 1000 | OK22: 0 | OL22: 0 | OM22: 2111 | ON22: 1111 | OO22: 0 | OP22: 0 | OQ22: 1000

Sheet Лист2

Sheet Лист3
